[Event "*** Titled Tuesday Blitz"]
[Site "Chess.com"]
[Date "2020.12.29"]
[Round "9"]
[White "theturtlemoves"]
[Black "karinachess1"]
[Result "1-0"]
[WhiteElo "2377"]
[BlackElo "2471"]
[TimeControl "180+1"]
[EndTime "11:46:56 PST"]
[Termination "theturtlemoves won by checkmate"]

1. e4 {[%clk 0:03:00.9]} 1... d6 {[%clk 0:02:56.1]} 2. d4 {[%clk 0:03:00.8]}
2... Nf6 {[%clk 0:02:55.8]} 3. Nd2 {[%clk 0:03:00.6]} 3... e5 {[%clk 0:02:53.6]}
4. c3 {[%clk 0:03:00.9]} 4... Nbd7 {[%clk 0:02:51.1]} 5. Ngf3 {[%clk 0:03:01.1]}
5... c6 {[%clk 0:02:40.6]} 6. Bd3 {[%clk 0:03:01.4]} 6... Be7 {[%clk 0:02:37.9]}
7. O-O {[%clk 0:03:01.9]} 7... O-O {[%clk 0:02:37.5]} 8. Re1 {[%clk 0:03:02.5]}
8... Qc7 {[%clk 0:02:34.7]} 9. Nf1 {[%clk 0:03:02.5]} 9... Re8 {[%clk
0:02:31.2]} 10. Ng3 {[%clk 0:03:02.3]} 10... Nf8 {[%clk 0:02:30.5]} 11. h3
{[%clk 0:02:56.1]} 11... g6 {[%clk 0:02:20.5]} 12. Bh6 {[%clk 0:02:44.7]} 12...
Ne6 {[%clk 0:02:20]} 13. Qd2 {[%clk 0:02:38.3]} 13... Ng7 {[%clk 0:02:01.9]} 14.
c4 {[%clk 0:02:03.8]} 14... Bf8 {[%clk 0:01:42.5]} 15. d5 {[%clk 0:02:03.4]}
15... Bd7 {[%clk 0:01:33.5]} 16. b4 {[%clk 0:01:42.5]} 16... a5 {[%clk
0:01:32.3]} 17. bxa5 {[%clk 0:01:38.2]} 17... Rxa5 {[%clk 0:01:23]} 18. Reb1
{[%clk 0:01:32]} 18... Rea8 {[%clk 0:01:20.8]} 19. Qb2 {[%clk 0:01:25.4]} 19...
b5 {[%clk 0:01:02.7]} 20. dxc6 {[%clk 0:01:09.6]} 20... bxc4 {[%clk 0:01:02.7]}
21. Bxc4 {[%clk 0:01:08.9]} 21... Bxc6 {[%clk 0:01:01.3]} 22. Ng5 {[%clk
0:00:57.3]} 22... d5 {[%clk 0:00:50.4]} 23. exd5 {[%clk 0:00:55.2]} 23... Bxd5
{[%clk 0:00:49.4]} 24. Bxd5 {[%clk 0:00:53.9]} 24... Nxd5 {[%clk 0:00:44.7]} 25.
Qb7 {[%clk 0:00:40.2]} 25... Qxb7 {[%clk 0:00:16]} 26. Rxb7 {[%clk 0:00:41.1]}
26... R5a7 {[%clk 0:00:16]} 27. Rxa7 {[%clk 0:00:37.7]} 27... Rxa7 {[%clk
0:00:16.9]} 28. a4 {[%clk 0:00:36]} 28... Bb4 {[%clk 0:00:14.9]} 29. Nf3 {[%clk
0:00:23]} 29... f6 {[%clk 0:00:13.6]} 30. Ne4 {[%clk 0:00:19.6]} 30... Kf7
{[%clk 0:00:12.7]} 31. Rd1 {[%clk 0:00:14.3]} 31... Ra5 {[%clk 0:00:10.7]} 32.
h4 {[%clk 0:00:06]} 32... Ne6 {[%clk 0:00:10.7]} 33. Bc1 {[%clk 0:00:05.3]}
33... Nef4 {[%clk 0:00:08.2]} 34. Bxf4 {[%clk 0:00:04.6]} 34... Nxf4 {[%clk
0:00:09.1]} 35. Rd7+ {[%clk 0:00:03.9]} 35... Ke6 {[%clk 0:00:09.4]} 36. Rxh7
{[%clk 0:00:04]} 36... Rxa4 {[%clk 0:00:09.7]} 37. g3 {[%clk 0:00:04.3]} 37...
Ne2+ {[%clk 0:00:09.7]} 38. Kf1 {[%clk 0:00:04.7]} 38... Be7 {[%clk 0:00:09.8]}
39. Kxe2 {[%clk 0:00:04.3]} 39... Rxe4+ {[%clk 0:00:09.8]} 40. Kf1 {[%clk
0:00:04.6]} 40... Ra4 {[%clk 0:00:09.7]} 41. Kg2 {[%clk 0:00:04.9]} 41... Ra2
{[%clk 0:00:09.2]} 42. Ng1 {[%clk 0:00:04.3]} 42... Bc5 {[%clk 0:00:09.1]} 43.
Nh3 {[%clk 0:00:04.9]} 43... e4 {[%clk 0:00:08.8]} 44. Rg7 {[%clk 0:00:05.1]}
44... e3 {[%clk 0:00:08.9]} 45. Rxg6 {[%clk 0:00:05.5]} 45... e2 {[%clk
0:00:09.3]} 46. Nf4+ {[%clk 0:00:05.5]} 46... Kf5 {[%clk 0:00:09.8]} 47. Kf3
{[%clk 0:00:02.9]} 47... e1=Q {[%clk 0:00:09.3]} 48. g4+ {[%clk 0:00:03.8]}
48... Ke5 {[%clk 0:00:09.1]} 49. Nd3+ {[%clk 0:00:04.7]} 49... Kd4 {[%clk
0:00:09.2]} 50. Nxe1 {[%clk 0:00:05.6]} 50... Ra3+ {[%clk 0:00:09.4]} 51. Kg2
{[%clk 0:00:05.8]} 51... Ke5 {[%clk 0:00:08.4]} 52. Nf3+ {[%clk 0:00:06.7]}
52... Ke6 {[%clk 0:00:08.2]} 53. g5 {[%clk 0:00:07.3]} 53... Kf5 {[%clk
0:00:07.7]} 54. Rxf6+ {[%clk 0:00:07.6]} 54... Kg4 {[%clk 0:00:08]} 55. g6
{[%clk 0:00:07]} 55... Ra2 {[%clk 0:00:07.2]} 56. Ne5+ {[%clk 0:00:05.5]} 56...
Kxh4 {[%clk 0:00:06.6]} 57. g7 {[%clk 0:00:05.6]} 57... Ra8 {[%clk 0:00:06.6]}
58. Ng6+ {[%clk 0:00:04.5]} 58... Kg5 {[%clk 0:00:06.8]} 59. Nf8 {[%clk
0:00:05]} 59... Kxf6 {[%clk 0:00:06.6]} 60. g8=Q {[%clk 0:00:04.2]} 60... Rxf8
{[%clk 0:00:07.5]} 61. Qd5 {[%clk 0:00:04]} 61... Be7 {[%clk 0:00:06.3]} 62. f4
{[%clk 0:00:02.9]} 62... Rf7 {[%clk 0:00:06]} 63. Kf3 {[%clk 0:00:02.4]} 63...
Rf8 {[%clk 0:00:05.7]} 64. Kg4 {[%clk 0:00:02.6]} 64... Bd8 {[%clk 0:00:06]} 65.
Qd6+ {[%clk 0:00:01.4]} 65... Kf7 {[%clk 0:00:05.6]} 66. f5 {[%clk 0:00:02]}
66... Bf6 {[%clk 0:00:05.4]} 67. Qd7+ {[%clk 0:00:02.4]} 67... Be7 {[%clk
0:00:05.1]} 68. Kf4 {[%clk 0:00:01.9]} 68... Kf6 {[%clk 0:00:02.8]} 69. Qe6+
{[%clk 0:00:02]} 69... Kg7 {[%clk 0:00:03.5]} 70. Qg6+ {[%clk 0:00:02.9]} 70...
Kh8 {[%clk 0:00:03.3]} 71. Kg4 {[%clk 0:00:02.2]} 71... Bf6 {[%clk 0:00:03.1]}
72. Qh6+ {[%clk 0:00:02.3]} 72... Kg8 {[%clk 0:00:03]} 73. Qg6+ {[%clk
0:00:02.7]} 73... Bg7 {[%clk 0:00:03.2]} 74. Kg5 {[%clk 0:00:03]} 74... Rf6
{[%clk 0:00:03.2]} 75. Qe8+ {[%clk 0:00:02.5]} 75... Rf8 {[%clk 0:00:03.1]} 76.
Qg6 {[%clk 0:00:02.9]} 76... Rf6 {[%clk 0:00:02.8]} 77. Qxf6 {[%clk 0:00:03.3]}
77... Bxf6+ {[%clk 0:00:02.9]} 78. Kxf6 {[%clk 0:00:04.2]} 78... Kf8 {[%clk
0:00:03.8]} 79. Ke6 {[%clk 0:00:04.7]} 79... Ke8 {[%clk 0:00:04.3]} 80. f6
{[%clk 0:00:05.2]} 80... Kf8 {[%clk 0:00:05]} 81. f7 {[%clk 0:00:05.9]} 81...
Kg7 {[%clk 0:00:05.8]} 82. Ke7 {[%clk 0:00:06.8]} 82... Kg6 {[%clk 0:00:06.1]}
83. f8=Q {[%clk 0:00:07.7]} 83... Kg5 {[%clk 0:00:07]} 84. Qf6+ {[%clk
0:00:08.4]} 84... Kg4 {[%clk 0:00:07.9]} 85. Ke6 {[%clk 0:00:08.5]} 85... Kg3
{[%clk 0:00:08.8]} 86. Ke5 {[%clk 0:00:09.3]} 86... Kg2 {[%clk 0:00:09.7]} 87.
Ke4 {[%clk 0:00:10]} 87... Kg1 {[%clk 0:00:10.6]} 88. Ke3 {[%clk 0:00:10.9]}
88... Kh1 {[%clk 0:00:11.5]} 89. Qf3+ {[%clk 0:00:10.6]} 89... Kh2 {[%clk
0:00:12.4]} 90. Qg4 {[%clk 0:00:10.7]} 90... Kh1 {[%clk 0:00:12.6]} 91. Kf2
{[%clk 0:00:11.6]} 91... Kh2 {[%clk 0:00:13.5]} 92. Qh5# {[%clk 0:00:12.4]} 1-0

[Event "*** Titled Tuesday Blitz"]
[Site "Chess.com"]
[Date "2020.12.29"]
[Round "9"]
[White "Euge_chess"]
[Black "vova-79"]
[Result "0-1"]
[WhiteElo "2082"]
[BlackElo "2533"]
[TimeControl "180+1"]
[EndTime "11:47:03 PST"]
[Termination "vova-79 won on time"]

1. e4 {[%clk 0:03:00.9]} 1... d5 {[%clk 0:02:46.9]} 2. exd5 {[%clk 0:03:00.1]}
2... Qxd5 {[%clk 0:02:46.4]} 3. Nc3 {[%clk 0:03:00.6]} 3... Qd6 {[%clk
0:02:45.4]} 4. Nf3 {[%clk 0:03:01]} 4... Nf6 {[%clk 0:02:44.9]} 5. d4 {[%clk
0:03:01.4]} 5... g6 {[%clk 0:02:45.1]} 6. Be2 {[%clk 0:02:55.2]} 6... Bg7 {[%clk
0:02:44.9]} 7. O-O {[%clk 0:02:54.7]} 7... O-O {[%clk 0:02:44.1]} 8. Be3 {[%clk
0:02:54.2]} 8... a6 {[%clk 0:02:43.5]} 9. Ne5 {[%clk 0:02:49.9]} 9... Nc6 {[%clk
0:02:40.5]} 10. Nxc6 {[%clk 0:02:46.7]} 10... Qxc6 {[%clk 0:02:40.2]} 11. Bf3
{[%clk 0:02:47.2]} 11... Qd7 {[%clk 0:02:39.3]} 12. Re1 {[%clk 0:02:40.2]} 12...
c6 {[%clk 0:02:39.3]} 13. Rb1 {[%clk 0:02:29.1]} 13... Nd5 {[%clk 0:02:38.9]}
14. Nxd5 {[%clk 0:02:22.1]} 14... cxd5 {[%clk 0:02:39.8]} 15. b3 {[%clk
0:02:17.1]} 15... Qd6 {[%clk 0:02:21.2]} 16. c4 {[%clk 0:02:13.5]} 16... Be6
{[%clk 0:02:09.2]} 17. c5 {[%clk 0:02:07.6]} 17... Qd7 {[%clk 0:02:08.2]} 18.
Qd2 {[%clk 0:02:06.7]} 18... Bf5 {[%clk 0:02:01.8]} 19. Rbc1 {[%clk 0:01:58.3]}
19... a5 {[%clk 0:01:58.7]} 20. a4 {[%clk 0:01:52]} 20... Rfc8 {[%clk
0:01:52.5]} 21. h3 {[%clk 0:01:37.3]} 21... h5 {[%clk 0:01:51.1]} 22. Bh6 {[%clk
0:01:32.1]} 22... Bh8 {[%clk 0:01:46.4]} 23. Bg5 {[%clk 0:01:31.7]} 23... Be6
{[%clk 0:01:43.2]} 24. Re2 {[%clk 0:01:20.6]} 24... Rc6 {[%clk 0:01:39.8]} 25.
Rce1 {[%clk 0:01:16.9]} 25... b6 {[%clk 0:01:35.4]} 26. Be3 {[%clk 0:01:04.1]}
26... Rb8 {[%clk 0:01:27.6]} 27. Rb1 {[%clk 0:00:50.9]} 27... Bf5 {[%clk
0:01:20.6]} 28. Rc1 {[%clk 0:00:49.6]} 28... Be6 {[%clk 0:01:15.9]} 29. Rb1
{[%clk 0:00:48.8]} 29... Bf6 {[%clk 0:01:13.2]} 30. cxb6 {[%clk 0:00:45.8]}
30... Rcxb6 {[%clk 0:01:10]} 31. Qxa5 {[%clk 0:00:45.3]} 31... Rxb3 {[%clk
0:01:09.9]} 32. Rc1 {[%clk 0:00:42.7]} 32... R3b4 {[%clk 0:01:01.6]} 33. Ra2
{[%clk 0:00:23.5]} 33... Bxd4 {[%clk 0:00:50.5]} 34. Bxd4 {[%clk 0:00:23.4]}
34... Rxd4 {[%clk 0:00:50.6]} 35. Qc7 {[%clk 0:00:23.7]} 35... Ra8 {[%clk
0:00:43.8]} 36. Qxd7 {[%clk 0:00:21.5]} 36... Bxd7 {[%clk 0:00:43.3]} 37. a5
{[%clk 0:00:22.2]} 37... Ra7 {[%clk 0:00:42.6]} 38. a6 {[%clk 0:00:18.2]} 38...
Bb5 {[%clk 0:00:41.5]} 39. Rc5 {[%clk 0:00:16.6]} 39... Rxa6 {[%clk 0:00:40.3]}
40. Rxa6 {[%clk 0:00:15.5]} 40... Bxa6 {[%clk 0:00:39.9]} 41. Rxd5 {[%clk
0:00:15.2]} 41... Rxd5 {[%clk 0:00:35.7]} 42. Bxd5 {[%clk 0:00:15.1]} 42... h4
{[%clk 0:00:35.5]} 43. Kh2 {[%clk 0:00:13.4]} 43... Kg7 {[%clk 0:00:34.7]} 44.
g3 {[%clk 0:00:13.5]} 44... hxg3+ {[%clk 0:00:34.8]} 45. Kxg3 {[%clk 0:00:13.6]}
45... f5 {[%clk 0:00:30.5]} 46. Kf4 {[%clk 0:00:13.6]} 46... Kf6 {[%clk
0:00:29.9]} 47. h4 {[%clk 0:00:12.9]} 47... e5+ {[%clk 0:00:29.5]} 48. Ke3
{[%clk 0:00:12]} 48... Bb5 {[%clk 0:00:25.9]} 49. f4 {[%clk 0:00:11.7]} 49...
Be8 {[%clk 0:00:19.9]} 50. Bc4 {[%clk 0:00:08.6]} 50... e4 {[%clk 0:00:19.9]}
51. Be2 {[%clk 0:00:07.8]} 51... Ke6 {[%clk 0:00:19.3]} 52. Bc4+ {[%clk
0:00:07]} 52... Kd6 {[%clk 0:00:19.4]} 53. Be2 {[%clk 0:00:07.1]} 53... Kc5
{[%clk 0:00:19.3]} 54. Bd1 {[%clk 0:00:06.8]} 54... Bf7 {[%clk 0:00:19.3]} 55.
Bc2 {[%clk 0:00:06.2]} 55... Kb4 {[%clk 0:00:19.5]} 56. Bd1 {[%clk 0:00:06.2]}
56... Kc3 {[%clk 0:00:19.3]} 57. Be2 {[%clk 0:00:06.3]} 57... Bc4 {[%clk
0:00:18.2]} 58. Bd1 {[%clk 0:00:05.9]} 58... Bb3 {[%clk 0:00:17]} 59. Be2 {[%clk
0:00:05.8]} 59... Bf7 {[%clk 0:00:17.9]} 60. Bd1 {[%clk 0:00:05.5]} 60... Be8
{[%clk 0:00:17.5]} 61. Be2 {[%clk 0:00:05.3]} 61... Kc2 {[%clk 0:00:17.8]} 62.
Bf1 {[%clk 0:00:04.4]} 62... Kd1 {[%clk 0:00:17.7]} 63. Be2+ {[%clk 0:00:03.8]}
63... Ke1 {[%clk 0:00:17.6]} 64. Bc4 {[%clk 0:00:03.6]} 64... Kd1 {[%clk
0:00:14.2]} 65. Be2+ {[%clk 0:00:04]} 65... Kc2 {[%clk 0:00:13.6]} 66. Bc4
{[%clk 0:00:04.6]} 66... Kc3 {[%clk 0:00:11.6]} 67. Be2 {[%clk 0:00:01.6]} 67...
Ba4 {[%clk 0:00:10.8]} 68. Bf1 {[%clk 0:00:01.6]} 68... Bb3 {[%clk 0:00:09.8]}
69. Bg2 {[%clk 0:00:02.1]} 69... Bd1 {[%clk 0:00:06.7]} 70. Bh3 {[%clk
0:00:02.8]} 70... Bh5 {[%clk 0:00:06.3]} 71. Bg2 {[%clk 0:00:02.7]} 71... Kc2
{[%clk 0:00:06.5]} 72. Bf1 {[%clk 0:00:03.5]} 72... Kd1 {[%clk 0:00:06.3]} 73.
Bb5 {[%clk 0:00:04.4]} 73... Ke1 {[%clk 0:00:06.1]} 74. Bc4 {[%clk 0:00:03.9]}
74... Bg4 {[%clk 0:00:05.3]} 75. Bb5 {[%clk 0:00:03.5]} 75... Bd1 {[%clk
0:00:05]} 76. Bc4 {[%clk 0:00:03.2]} 76... Bg4 {[%clk 0:00:03.8]} 77. Bf7 {[%clk
0:00:03.1]} 77... Bh5 {[%clk 0:00:03.7]} 78. Bc4 {[%clk 0:00:03.6]} 78... Kd1
{[%clk 0:00:03.6]} 79. Bb5 {[%clk 0:00:03.5]} 79... Kc2 {[%clk 0:00:03.6]} 80.
Bc4 {[%clk 0:00:03.7]} 80... Kc3 {[%clk 0:00:03.5]} 81. Bb5 {[%clk 0:00:03.6]}
81... Kb4 {[%clk 0:00:03.6]} 82. Bf1 {[%clk 0:00:04]} 82... Kc5 {[%clk
0:00:03.8]} 83. Bg2 {[%clk 0:00:03.4]} 83... Bg4 {[%clk 0:00:03.6]} 84. Bf1
{[%clk 0:00:03.3]} 84... Kd6 {[%clk 0:00:04.1]} 85. Bg2 {[%clk 0:00:03.2]} 85...
Ke7 {[%clk 0:00:04.5]} 86. Bf1 {[%clk 0:00:03.1]} 86... Kf6 {[%clk 0:00:05]} 87.
Bc4 {[%clk 0:00:02.2]} 87... Kg7 {[%clk 0:00:05.4]} 88. Kf2 {[%clk 0:00:01.5]}
88... Kh6 {[%clk 0:00:04]} 0-1

[Event "*** Titled Tuesday Blitz"]
[Site "Chess.com"]
[Date "2020.12.29"]
[Round "9"]
[White "azikom"]
[Black "Macron20hTF1"]
[Result "0-1"]
[WhiteElo "2596"]
[BlackElo "2503"]
[TimeControl "180+1"]
[EndTime "11:47:07 PST"]
[Termination "Macron20hTF1 won on time"]

1. d4 {[%clk 0:02:59.8]} 1... g6 {[%clk 0:03:00.4]} 2. e4 {[%clk 0:02:59]} 2...
Bg7 {[%clk 0:03:00.7]} 3. Nc3 {[%clk 0:02:56.8]} 3... d6 {[%clk 0:03:01.1]} 4.
Be3 {[%clk 0:02:55.5]} 4... a6 {[%clk 0:03:01.5]} 5. Qd2 {[%clk 0:02:55.3]} 5...
b5 {[%clk 0:03:02]} 6. f3 {[%clk 0:02:55.6]} 6... Nd7 {[%clk 0:03:02.1]} 7. Nh3
{[%clk 0:02:55]} 7... c5 {[%clk 0:02:58.3]} 8. dxc5 {[%clk 0:02:51.3]} 8... Nxc5
{[%clk 0:02:57.8]} 9. Nf2 {[%clk 0:02:49.5]} 9... Bb7 {[%clk 0:02:56.3]} 10. Bd4
{[%clk 0:02:47.6]} 10... Bxd4 {[%clk 0:02:45.6]} 11. Qxd4 {[%clk 0:02:46.9]}
11... Nf6 {[%clk 0:02:46.1]} 12. O-O-O {[%clk 0:02:46.1]} 12... O-O {[%clk
0:02:14.7]} 13. e5 {[%clk 0:02:23.8]} 13... Ne6 {[%clk 0:02:14.7]} 14. Qh4
{[%clk 0:02:15.3]} 14... Ne8 {[%clk 0:01:02.4]} 15. Ng4 {[%clk 0:01:53.5]} 15...
Qc7 {[%clk 0:01:00.1]} 16. exd6 {[%clk 0:01:47.8]} 16... Nxd6 {[%clk 0:01:00]}
17. Kb1 {[%clk 0:01:40.5]} 17... Nf5 {[%clk 0:00:59.8]} 18. Qf2 {[%clk
0:01:35.6]} 18... Rac8 {[%clk 0:00:55.6]} 19. Bd3 {[%clk 0:01:35]} 19... Nfd4
{[%clk 0:00:50.3]} 20. Rhe1 {[%clk 0:01:19.5]} 20... Rfd8 {[%clk 0:00:47.1]} 21.
a3 {[%clk 0:01:14.5]} 21... Nf4 {[%clk 0:00:31]} 22. Bf1 {[%clk 0:01:11.9]}
22... Nfe6 {[%clk 0:00:28.2]} 23. Ne5 {[%clk 0:01:09.3]} 23... a5 {[%clk
0:00:25.5]} 24. Nd3 {[%clk 0:00:24.1]} 24... Qb8 {[%clk 0:00:19.1]} 25. f4
{[%clk 0:00:16.6]} 25... b4 {[%clk 0:00:18.6]} 26. axb4 {[%clk 0:00:16.5]} 26...
axb4 {[%clk 0:00:19]} 27. Nxb4 {[%clk 0:00:17]} 27... Ba8 {[%clk 0:00:16.4]} 28.
Nca2 {[%clk 0:00:13.3]} 28... Rd6 {[%clk 0:00:11]} 29. c3 {[%clk 0:00:12.6]}
29... Nb3 {[%clk 0:00:09.7]} 30. Rxd6 {[%clk 0:00:12.5]} 30... Qxd6 {[%clk
0:00:10.2]} 31. Bd3 {[%clk 0:00:11.4]} 31... Nec5 {[%clk 0:00:08.6]} 32. Bc2
{[%clk 0:00:11.3]} 32... Nd2+ {[%clk 0:00:09]} 33. Kc1 {[%clk 0:00:10.4]} 33...
Ndb3+ {[%clk 0:00:09.4]} 34. Bxb3 {[%clk 0:00:10.7]} 34... Nxb3+ {[%clk
0:00:10.3]} 35. Kc2 {[%clk 0:00:11]} 35... Nd4+ {[%clk 0:00:10.5]} 36. Kb1
{[%clk 0:00:11.2]} 36... Nf5 {[%clk 0:00:10.4]} 37. Nc1 {[%clk 0:00:10.6]} 37...
Rd8 {[%clk 0:00:05.6]} 38. g4 {[%clk 0:00:10.1]} 38... Ng7 {[%clk 0:00:04.8]}
39. f5 {[%clk 0:00:10.1]} 39... gxf5 {[%clk 0:00:04.6]} 40. gxf5 {[%clk
0:00:10.4]} 40... Qd2 {[%clk 0:00:04.7]} 41. Qxd2 {[%clk 0:00:10.3]} 41... Rxd2
{[%clk 0:00:05.6]} 42. Rxe7 {[%clk 0:00:10.9]} 42... Kf8 {[%clk 0:00:05.9]} 43.
Ra7 {[%clk 0:00:10.7]} 43... Be4+ {[%clk 0:00:05.6]} 44. Ka2 {[%clk 0:00:11.2]}
44... Nxf5 {[%clk 0:00:06.1]} 45. Nb3 {[%clk 0:00:10.2]} 45... Rxh2 {[%clk
0:00:05.7]} 46. Nc5 {[%clk 0:00:10]} 46... Bf3 {[%clk 0:00:04.4]} 47. Nd7+
{[%clk 0:00:09.4]} 47... Kg7 {[%clk 0:00:04.3]} 48. Ne5 {[%clk 0:00:09.9]} 48...
Bh5 {[%clk 0:00:04.1]} 49. Kb3 {[%clk 0:00:09.5]} 49... Ne3 {[%clk 0:00:04.5]}
50. Nc4 {[%clk 0:00:08.3]} 50... Nxc4 {[%clk 0:00:03.9]} 51. Kxc4 {[%clk
0:00:08.3]} 51... Rxb2 {[%clk 0:00:04.8]} 52. Kd4 {[%clk 0:00:08.6]} 52... Rd2+
{[%clk 0:00:04.7]} 53. Ke3 {[%clk 0:00:08.4]} 53... Re2+ {[%clk 0:00:04.7]} 54.
Kd3 {[%clk 0:00:08.6]} 54... Re6 {[%clk 0:00:05.2]} 55. c4 {[%clk 0:00:08.6]}
55... Bg6+ {[%clk 0:00:06.1]} 56. Kd4 {[%clk 0:00:08.2]} 56... h5 {[%clk
0:00:07]} 57. c5 {[%clk 0:00:08.3]} 57... h4 {[%clk 0:00:07.5]} 58. c6 {[%clk
0:00:08.6]} 58... Re1 {[%clk 0:00:05.5]} 59. c7 {[%clk 0:00:08.4]} 59... Rc1
{[%clk 0:00:05.6]} 60. Nd5 {[%clk 0:00:07.6]} 60... h3 {[%clk 0:00:04.8]} 61.
Ra2 {[%clk 0:00:08.1]} 61... Bf5 {[%clk 0:00:02.9]} 62. Rh2 {[%clk 0:00:08.4]}
62... Be6 {[%clk 0:00:03.1]} 63. Nc3 {[%clk 0:00:08.6]} 63... Re1 {[%clk
0:00:02.3]} 64. Rf2 {[%clk 0:00:08.3]} 64... Rg1 {[%clk 0:00:02.3]} 65. Rh2
{[%clk 0:00:08.3]} 65... Rg4+ {[%clk 0:00:02.9]} 66. Ke3 {[%clk 0:00:06.8]}
66... Rc4 {[%clk 0:00:03.8]} 67. Ne4 {[%clk 0:00:05.1]} 67... Rxc7 {[%clk
0:00:03.8]} 68. Ng5 {[%clk 0:00:05.6]} 68... Bf5 {[%clk 0:00:03.8]} 69. Kf4
{[%clk 0:00:05.7]} 69... Bg6 {[%clk 0:00:04]} 70. Nxh3 {[%clk 0:00:05.6]} 70...
Rc4+ {[%clk 0:00:04.9]} 71. Kg3 {[%clk 0:00:05.4]} 71... Rc3+ {[%clk 0:00:05.4]}
72. Kh4 {[%clk 0:00:05.6]} 72... Rf3 {[%clk 0:00:05.2]} 73. Ng5 {[%clk
0:00:05.1]} 73... Rf4+ {[%clk 0:00:05.3]} 74. Kg3 {[%clk 0:00:05.2]} 74... Rf5
{[%clk 0:00:06.2]} 75. Nf3 {[%clk 0:00:05.3]} 75... Ra5 {[%clk 0:00:06.7]} 76.
Rd2 {[%clk 0:00:04.4]} 76... Ra3 {[%clk 0:00:07.1]} 77. Kf2 {[%clk 0:00:04.5]}
77... Bh5 {[%clk 0:00:07.3]} 78. Nd4 {[%clk 0:00:04.5]} 78... Ra4 {[%clk
0:00:07.1]} 79. Ne2 {[%clk 0:00:03.9]} 79... Bg6 {[%clk 0:00:06.7]} 80. Ng3
{[%clk 0:00:03.2]} 80... Rf4+ {[%clk 0:00:06.7]} 81. Kg2 {[%clk 0:00:03.1]}
81... Ra4 {[%clk 0:00:07.6]} 82. Kf2 {[%clk 0:00:03.2]} 82... Kh6 {[%clk
0:00:07.6]} 83. Rd6 {[%clk 0:00:02.8]} 83... Kg5 {[%clk 0:00:06.8]} 84. Rb6
{[%clk 0:00:02.6]} 84... f5 {[%clk 0:00:07]} 85. Rb5 {[%clk 0:00:01.8]} 85...
Kg4 {[%clk 0:00:07.1]} 86. Ne2 {[%clk 0:00:01.1]} 86... f4 {[%clk 0:00:06.9]}
0-1

[Event "*** Titled Tuesday Blitz"]
[Site "Chess.com"]
[Date "2020.12.29"]
[Round "10"]
[White "ViktoriyaTarasova"]
[Black "vrekhson"]
[Result "1-0"]
[WhiteElo "2350"]
[BlackElo "2234"]
[TimeControl "180+1"]
[EndTime "11:49:14 PST"]
[Termination "ViktoriyaTarasova won by resignation"]

1. d4 {[%clk 0:03:00.9]} 1... Nf6 {[%clk 0:02:56.6]} 2. c4 {[%clk 0:03:00]} 2...
c5 {[%clk 0:02:56.8]} 3. d5 {[%clk 0:03:00]} 3... b5 {[%clk 0:02:57]} 4. cxb5
{[%clk 0:02:59.3]} 4... a6 {[%clk 0:02:57.5]} 5. bxa6 {[%clk 0:02:58.4]} 5... g6
{[%clk 0:02:57.1]} 6. Nc3 {[%clk 0:02:58.8]} 6... Bxa6 {[%clk 0:02:57.7]} 7. Nf3
{[%clk 0:02:59.1]} 7... Bg7 {[%clk 0:02:54.3]} 8. e4 {[%clk 0:02:58.8]} 8...
Bxf1 {[%clk 0:02:54.4]} 9. Kxf1 {[%clk 0:02:59.3]} 9... d6 {[%clk 0:02:54.9]}
10. g3 {[%clk 0:02:59.3]} 10... Nbd7 {[%clk 0:02:54.5]} 11. Kg2 {[%clk
0:02:59.7]} 11... Ng4 {[%clk 0:02:54.5]} 12. Qe2 {[%clk 0:02:58.7]} 12... O-O
{[%clk 0:02:54]} 13. Nd2 {[%clk 0:02:58.5]} 13... Qa5 {[%clk 0:02:51]} 14. Qxg4
{[%clk 0:02:56.9]} 14... Ne5 {[%clk 0:02:36.9]} 15. Qe2 {[%clk 0:02:56.6]} 15...
c4 {[%clk 0:02:36.4]} 16. f4 {[%clk 0:02:52.6]} 16... Nd3 {[%clk 0:02:36.1]} 17.
Nxc4 {[%clk 0:02:51.2]} 17... Nxc1 {[%clk 0:02:34.7]} 18. Rhxc1 {[%clk
0:02:48.7]} 1-0

[Event "*** Titled Tuesday Blitz"]
[Site "Chess.com"]
[Date "2020.12.29"]
[Round "10"]
[White "Ural_bogatyr"]
[Black "Frolyanov_D"]
[Result "1-0"]
[WhiteElo "2502"]
[BlackElo "2634"]
[TimeControl "180+1"]
[EndTime "11:50:51 PST"]
[Termination "Ural_bogatyr won by resignation"]

1. e4 {[%clk 0:02:53.9]} 1... c5 {[%clk 0:02:59.6]} 2. Nf3 {[%clk 0:02:53.4]}
2... e6 {[%clk 0:03:00.1]} 3. c3 {[%clk 0:02:53.3]} 3... Nf6 {[%clk 0:02:59.3]}
4. e5 {[%clk 0:02:53.6]} 4... Nd5 {[%clk 0:02:59.7]} 5. d4 {[%clk 0:02:54.5]}
5... cxd4 {[%clk 0:03:00.2]} 6. Qxd4 {[%clk 0:02:55.4]} 6... Nc6 {[%clk
0:02:59.2]} 7. Qe4 {[%clk 0:02:55.9]} 7... d6 {[%clk 0:02:58.8]} 8. Bb5 {[%clk
0:02:56.5]} 8... Bd7 {[%clk 0:02:58]} 9. c4 {[%clk 0:02:56.3]} 9... Nc7 {[%clk
0:02:52.6]} 10. Bg5 {[%clk 0:02:55.6]} 10... Qc8 {[%clk 0:02:46.3]} 11. exd6
{[%clk 0:02:55.6]} 11... Bxd6 {[%clk 0:02:44.5]} 12. O-O {[%clk 0:02:55.2]}
12... h6 {[%clk 0:02:32.5]} 13. Be3 {[%clk 0:02:46.8]} 13... O-O {[%clk
0:02:29.8]} 14. Rd1 {[%clk 0:02:46]} 14... Be7 {[%clk 0:02:21.6]} 15. Nc3 {[%clk
0:02:43.7]} 15... Bf6 {[%clk 0:01:59.5]} 16. Qg4 {[%clk 0:02:33.5]} 16... e5
{[%clk 0:01:38.7]} 17. Qxd7 {[%clk 0:02:31]} 17... Nxb5 {[%clk 0:01:38.4]} 18.
cxb5 {[%clk 0:02:21.3]} 18... Nd4 {[%clk 0:01:38]} 19. Qxc8 {[%clk 0:02:20.8]}
1-0

[Event "*** Titled Tuesday Blitz"]
[Site "Chess.com"]
[Date "2020.12.29"]
[Round "10"]
[White "tylityli"]
[Black "Kazmin_Dmitrij"]
[Result "1/2-1/2"]
[WhiteElo "2355"]
[BlackElo "2266"]
[TimeControl "180+1"]
[EndTime "11:51:04 PST"]
[Termination "Game drawn by repetition"]

1. d4 {[%clk 0:02:51.3]} 1... f5 {[%clk 0:02:59.4]} 2. c4 {[%clk 0:02:49.7]}
2... Nf6 {[%clk 0:02:58.3]} 3. Nf3 {[%clk 0:02:49.9]} 3... g6 {[%clk 0:02:58.6]}
4. b4 {[%clk 0:02:49.2]} 4... Bg7 {[%clk 0:02:54]} 5. Bb2 {[%clk 0:02:49.3]}
5... O-O {[%clk 0:02:51.3]} 6. e3 {[%clk 0:02:49.5]} 6... d6 {[%clk 0:02:45.4]}
7. Qb3 {[%clk 0:02:48.9]} 7... Kh8 {[%clk 0:02:41.6]} 8. Nc3 {[%clk 0:02:45.4]}
8... Be6 {[%clk 0:02:41.4]} 9. d5 {[%clk 0:02:39.8]} 9... Bg8 {[%clk 0:02:41.1]}
10. Bd3 {[%clk 0:02:38.2]} 10... e5 {[%clk 0:02:39.4]} 11. dxe6 {[%clk
0:02:37.1]} 11... Bxe6 {[%clk 0:02:39]} 12. O-O {[%clk 0:02:36.9]} 12... Nbd7
{[%clk 0:02:33.4]} 13. Nd5 {[%clk 0:02:34.7]} 13... c6 {[%clk 0:02:27.5]} 14.
Nf4 {[%clk 0:02:32.2]} 14... Bg8 {[%clk 0:02:23.5]} 15. Rfd1 {[%clk 0:02:31.6]}
15... Qe7 {[%clk 0:02:16.9]} 16. Be2 {[%clk 0:02:17]} 16... a5 {[%clk
0:02:13.3]} 17. a3 {[%clk 0:02:12.8]} 17... a4 {[%clk 0:02:10.4]} 18. Qc2 {[%clk
0:02:12.6]} 18... Ne5 {[%clk 0:02:06.4]} 19. Rac1 {[%clk 0:02:09.3]} 19... Bf7
{[%clk 0:01:49.8]} 20. Ng5 {[%clk 0:01:59.2]} 20... Bg8 {[%clk 0:01:46.8]} 21.
Nf3 {[%clk 0:01:58.4]} 21... Bf7 {[%clk 0:01:46.3]} 22. Ng5 {[%clk 0:01:58]}
22... Bg8 {[%clk 0:01:46.4]} 23. Nf3 {[%clk 0:01:57.7]} 1/2-1/2